fUST/lending_fUST_20250802
["ID","MTS","AMOUNT","RATE_DAILY","PERIOD"]
[376692615,1754081455602,-430.3749276,0.00027123,2]
[376692616,1754081455611,-578.4830312,0.00027123,2]
[376692617,1754081455621,-178.5305504,0.00027123,2]
[376692618,1754081455630,-153.0,0.00027123,2]
[376692619,1754081455640,-430.3749276,0.00027123,2]
[376692620,1754081455649,-178.5305504,0.00027123,2]
[376692621,1754081455661,-153.0,0.00027123,2]
[376692622,1754081455671,-578.4830312,0.00027123,2]
[376692624,1754081455680,-430.3749276,0.00027123,2]
[376692626,1754081455689,-578.4830312,0.00027123,2]
[376692628,1754081455698,-153.0,0.00027123,2]
[376692630,1754081455707,-430.3749276,0.00027123,2]
[376692631,1754081455716,-178.5305504,0.00027123,2]
[376692634,1754081455727,-153.0,0.00027123,2]
[376692636,1754081455736,-178.5305504,0.00027123,2]
[376692638,1754081455746,-430.3749276,0.00027123,2]
[376692639,1754081455755,-153.0,0.00027123,2]
[376692640,1754081455764,-178.5305504,0.00027123,2]
[376692641,1754081455774,-430.3749276,0.00027123,2]
[376692642,1754081455787,-153.0,0.00027123,2]
[376692643,1754081455797,-178.5305504,0.00027123,2]
[376692644,1754081455805,-430.3749276,0.00027123,2]
[376692645,1754081455815,-430.3749276,0.00027123,2]
[376692646,1754081455825,-306.0,0.00027123,2]
[376692647,1754081455845,-430.3749276,0.00027123,2]
[376692648,1754081455855,-159.7980942,0.00027123,2]
[376692649,1754081455866,-176.4336913,0.00027123,2]
[376692650,1754081455876,-573.7671511,0.00027123,2]
[376692651,1754081455885,-428.2079866,0.00027123,2]
[376692652,1754081455895,-151.0,0.0002713,7]
[376692653,1754081455905,-151.0,0.0002713,7]
[376692654,1754081455914,-151.0,0.0002713,7]
[376692655,1754081455924,-273.959632,0.0002713,7]
[376692656,1754081455933,-151.0,0.0002713,7]
[376692657,1754081455943,-151.0,0.0002713,7]
[376692659,1754081455953,-151.0,0.0002713,7]
[376692660,1754081455963,-151.0,0.0002713,7]
[376692663,1754081455973,-447.104163,0.0002713,7]
[376692681,1754081456114,-447.104163,0.0002713,7]
[376692683,1754081456140,-233.611024,0.0002713,7]
[376692685,1754081456149,-233.611024,0.0002713,7]
[376692687,1754081456159,-151.0,0.0002713,7]
[376692689,1754081456169,-151.0,0.0002713,7]
[376692691,1754081456178,-151.0,0.0002713,7]
[376692693,1754081456188,-151.0,0.0002713,7]
[376692695,1754081456197,-109730.0,0.0002713,120]
[376692697,1754081456206,-5000.0,0.00027132,3]
[376692699,1754081456216,-151.0,0.00027132,7]
[376692701,1754081456226,-447.104163,0.00027132,7]
[376692703,1754081456235,-447.104163,0.00027132,7]
[376692705,1754081456245,-447.104163,0.00027132,7]
[376692707,1754081456254,-447.104163,0.00027132,7]
[376692709,1754081456264,-447.104163,0.00027132,7]
[376692711,1754081456273,-447.104163,0.00027132,7]
[376692713,1754081456282,-447.104163,0.00027132,7]
[376692715,1754081456292,-447.104163,0.00027132,7]
[376692718,1754081456301,-447.104163,0.00027132,7]
[376692720,1754081456310,-447.104163,0.00027132,7]
[376692722,1754081456319,-447.104163,0.00027132,7]
[376692724,1754081456328,-447.104163,0.00027132,7]
[376692726,1754081456337,-447.104163,0.00027132,7]
[376692728,1754081456349,-447.104163,0.00027132,7]
[376692730,1754081456360,-447.104163,0.00027132,7]
[376692732,1754081456369,-447.104163,0.00027132,7]
[376692734,1754081456378,-447.104163,0.00027132,7]
[376692736,1754081456387,-447.10415476,0.00027132,7]
[376692738,1754081456397,-233.611024,0.00027132,7]
[376692740,1754081456406,-233.611024,0.00027132,7]
[376692742,1754081456415,-233.611024,0.00027132,7]
[376692744,1754081456425,-233.611024,0.00027132,7]
[376692746,1754081456434,-233.611024,0.00027132,7]
[376692748,1754081456443,-233.611024,0.00027132,7]
[376692750,1754081456453,-233.611024,0.00027132,7]
[376692752,1754081456462,-233.611024,0.00027132,7]
[376692754,1754081456472,-233.611024,0.00027132,7]
[376692756,1754081456481,-233.611024,0.00027132,7]
[376692758,1754081456491,-233.611024,0.00027132,7]
[376692760,1754081456502,-233.611024,0.00027132,7]
[376692762,1754081456511,-233.611024,0.00027132,7]
[376692764,1754081456521,-233.611024,0.00027132,7]
[376692766,1754081456530,-233.611024,0.00027132,7]
[376692768,1754081456539,-233.611024,0.00027132,7]
[376692770,1754081456548,-233.611024,0.00027132,7]
[376692772,1754081456557,-233.611032,0.00027132,7]
[376692774,1754081456567,-151.0,0.00027132,7]
[376692776,1754081456576,-151.0,0.00027132,7]
[376692778,1754081456586,-151.0,0.00027132,7]
[376692780,1754081456596,-151.0,0.00027132,7]
[376692782,1754081456605,-240.58818,0.00027132,7]
[376692784,1754081456614,-244.637201,0.00027132,7]
[376692786,1754081456623,-151.0,0.00027139,7]
[376692788,1754081456633,-151.0,0.00027139,7]
[376692790,1754081456642,-151.0,0.00027139,7]
[376692792,1754081456651,-151.0,0.00027139,7]
[376692794,1754081456660,-151.0,0.00027139,7]
[376692796,1754081456670,-151.0,0.00027139,7]
[376692798,1754081456679,-151.0,0.00027139,7]
[376692800,1754081456688,-151.0,0.00027139,7]
[376692802,1754081456697,-151.0,0.00027139,7]
[376692804,1754081456707,-299.066887,0.00027139,7]
[376692806,1754081456717,-265.30223449,0.00027139,2]
[376692808,1754081456727,-1060.14772901,0.00027139,2]
[376692810,1754081456736,-650.56996197,0.00027139,2]
[376692812,1754081456746,-453.99105134,0.00027139,2]
[376692814,1754081456755,-445.19266555,0.00027139,2]
[376692816,1754081456765,-1780.77066218,0.00027139,2]
[376692818,1754081456777,-4006.73398991,0.00027139,2]
[376692820,1754081456788,-7115.95956608,0.00027139,2]
[376692822,1754081456797,-151.0,0.00027145,7]
[376692824,1754081456807,-151.0,0.00027145,7]
[376692826,1754081456816,-295.803075,0.00027145,7]
[376692828,1754081456826,-220.44,0.00027145,7]
[376692830,1754081456835,-500.0,0.00027146,10]
[376692832,1754081456845,-3444.39351732,0.00027147,2]
[376692834,1754081456856,-151.0,0.00027147,7]
[376692837,1754081456865,-151.0,0.00027147,7]
[376692838,1754081456875,-204.357016,0.00027147,7]
[376692840,1754081456884,-307.0,0.00027147,2]
[376692843,1754081456894,-682760.39701992,0.00027147,20]
[376695222,1754081483298,303.76223311,0.00019155,2]
[376695226,1754081483329,220537.77167863,0.00019155,2]
[376698160,1754081609021,202.69975959,0.00019152,2]
[376698161,1754081637267,5000.0,0.000192,2]
[376698162,1754081765623,-158.39782396,0.00019251,2]
[376698163,1754081767143,-141.60217604,0.00019251,2]
[376698164,1754081767170,-12.15875295,0.00019252,2]
[376698165,1754081878663,212.53831852,0.00027112,120]
[376698175,1754082225552,2036.4655385,0.00018792,2]
[376698177,1754082361639,6238.0856056,0.00018591,2]
[376698178,1754082412349,500.401596,0.00018591,2]
[376698179,1754082417840,210.58115918,0.000189,2]
[376698180,1754082428599,170.50085,0.00013699,2]
[376698182,1754082450637,1806.32500363,0.00019153,2]
[376698256,1754082638821,-300.0,0.0001925,2]
[376698258,1754082638831,-460.0,0.00019251,2]
[376698259,1754082638840,-460.0,0.00019251,2]
[376698261,1754082638849,-460.0,0.00019251,2]
[376698263,1754082638859,-460.0,0.00019251,2]
[376698265,1754082638869,-460.0,0.00019251,2]
[376698267,1754082638878,-460.0,0.00019251,2]
[376698269,1754082638888,-460.0,0.00019251,2]
[376698271,1754082638899,-460.0,0.00019251,2]
[376698273,1754082638909,-460.0,0.00019251,2]
[376698275,1754082638918,-323.78889151,0.00019251,2]
[376698277,1754082638931,-136.21110849,0.00019251,2]
[376698279,1754082638940,-1131.15029435,0.00019251,2]
[376698281,1754082638952,-1020.6724831,0.00019251,2]
[376698284,1754082638964,-536.18722255,0.00019251,2]
[376698286,1754082638974,-460.0,0.00019252,2]
[376698288,1754082638983,-460.0,0.00019252,2]
[376698290,1754082638992,-460.0,0.00019252,2]
[376698291,1754082639001,-460.0,0.00019252,2]
[376698292,1754082639011,-460.0,0.00019252,2]
[376698293,1754082639020,-460.0,0.00019252,2]
[376698294,1754082639029,-352.156064,0.00019252,2]
[376698295,1754082639039,-460.0,0.00019252,2]
[376698296,1754082639049,-460.0,0.00019252,2]
[376698297,1754082639058,-390.75624519,0.00019252,2]
[376698298,1754082639071,-460.0,0.00019252,2]
[376698299,1754082639081,-460.0,0.00019252,2]
[376698300,1754082639090,-358.34414556,0.00019252,2]
[376698301,1754082639101,-460.0,0.00019252,2]
[376698303,1754082639110,-460.0,0.00019252,2]
[376698305,1754082639121,-460.0,0.00019252,2]
[376698307,1754082639133,-460.0,0.00019252,2]
[376698309,1754082639142,-460.0,0.00019252,2]
[376698311,1754082639153,-460.0,0.00019252,2]
[376698313,1754082639162,-460.0,0.00019252,2]
[376698316,1754082639173,-460.0,0.00019252,2]
[376698318,1754082639182,-460.0,0.00019252,2]
[376698320,1754082639191,-460.0,0.00019252,2]
[376698322,1754082639201,-460.0,0.00019252,2]
[376698323,1754082639210,-460.0,0.00019252,2]
[376698324,1754082639220,-460.0,0.00019252,2]
[376698325,1754082639229,-460.0,0.00019252,2]
[376698327,1754082639239,-460.0,0.00019252,2]
[376698329,1754082639248,-460.0,0.00019252,2]
[376698331,1754082639258,-460.0,0.00019252,2]
[376698333,1754082639267,-460.0,0.00019252,2]
[376698335,1754082639276,-400.05457642,0.00019252,2]
[376698337,1754082639288,-59.94542358,0.00019252,2]
[376698339,1754082639297,-460.0,0.00019252,2]
[376698341,1754082639307,-460.0,0.00019252,2]
[376698344,1754082639317,-460.0,0.00019252,2]
[376698346,1754082639326,-460.0,0.00019252,2]
[376698348,1754082639335,-460.0,0.00019252,2]
[376698349,1754082639344,-315.39432195,0.00019252,2]
[376698352,1754082639354,-460.0,0.00019252,2]
[376698354,1754082639363,-460.0,0.00019252,2]
[376698356,1754082639373,-389.7637581,0.00019252,2]
[376698358,1754082639383,-460.0,0.00019252,2]
[376698360,1754082639392,-36.99530723,0.00019252,2]
[376698363,1754082639410,-423.00469277,0.00019252,2]
[376698365,1754082639419,-460.0,0.00019252,2]
[376698367,1754082639429,-460.0,0.00019252,2]
[376698369,1754082639439,-460.0,0.00019252,2]
[376698371,1754082639448,-460.0,0.00019252,2]
[376698373,1754082639457,-460.0,0.00019252,2]
[376698375,1754082639466,-507.88240223,0.00019252,2]
[376698377,1754082639475,-460.0,0.00019252,2]
[376698379,1754082639484,-460.0,0.00019252,2]
[376698381,1754082639494,-460.0,0.00019252,2]
[376698382,1754082639503,-168.25329764,0.00019252,2]
[376698385,1754082639513,-460.0,0.00019252,2]
[376698387,1754082639522,-460.0,0.00019252,2]
[376698389,1754082639534,-460.0,0.00019253,2]
[376698391,1754082639543,-477.65360241,0.00019253,2]
[376698393,1754082639552,-355.10837437,0.00019253,2]
[376698395,1754082639562,-460.0,0.00019253,2]
[376698397,1754082639571,-460.27521131,0.00019253,2]
[376698399,1754082639581,-460.0,0.00019253,2]
[376698401,1754082639594,-460.0,0.00019253,2]
[376698404,1754082639606,-460.0,0.00019253,2]
[376698406,1754082639617,-460.0,0.00019253,2]
[376698408,1754082639629,-460.0,0.00019253,2]
[376698410,1754082639640,-460.0,0.00019253,2]
[376698412,1754082639654,-460.0,0.00019253,2]
[376698415,1754082639665,-460.0,0.00019253,2]
[376698417,1754082639676,-460.0,0.00019253,2]
[376698419,1754082639686,-460.0,0.00019253,2]
[376698421,1754082639697,-463.44161823,0.00019253,2]
[376698423,1754082639707,-460.0,0.00019253,2]
[376698425,1754082639719,-460.0,0.00019253,2]
[376698428,1754082639730,-460.0,0.00019253,2]
[376698430,1754082639741,-460.0,0.00019253,2]
[376698432,1754082639751,-460.0,0.00019253,2]
[376698434,1754082639762,-460.0,0.00019253,2]
[376698436,1754082639773,-460.0,0.00019253,2]
[376698438,1754082639784,-394.30966042,0.00019253,2]
[376698439,1754082639797,-651.58,0.00019253,2]
[376698441,1754082639809,-460.0,0.00019353,2]
[376698442,1754082639820,-460.0,0.00019525,2]
[376698443,1754082639831,-460.0,0.00019525,2]
[376698444,1754082639842,-460.0,0.00019525,2]
[376698445,1754082639853,-460.0,0.00019525,2]
[376698446,1754082639864,-460.0,0.00019525,2]
[376698447,1754082639875,-460.0,0.00019525,2]
[376698448,1754082639887,-2688.01,0.00019525,2]
[376698449,1754082639901,-460.0,0.00019526,2]
[376698450,1754082639912,-460.0,0.00019526,2]
[376698451,1754082639924,-460.0,0.00019526,2]
[376698452,1754082639935,-180.83800694,0.00019526,2]
[376698453,1754082639948,-460.0,0.00019526,2]
[376698454,1754082639960,-460.0,0.00019526,2]
[376698455,1754082639971,-460.0,0.00019526,2]
[376698456,1754082639981,-460.0,0.00019526,2]
[376698457,1754082639995,-460.0,0.00019526,2]
[376698458,1754082640007,-460.0,0.00019526,2]
[376698459,1754082640018,-460.0,0.00019526,2]
[376698460,1754082640029,-460.0,0.00019526,2]
[376698461,1754082640039,-460.0,0.00019526,2]
[376698462,1754082640050,-460.0,0.00019526,2]
[376698463,1754082640060,-460.0,0.00019526,2]
[376698464,1754082640071,-460.0,0.00019526,2]
[376698465,1754082640083,-460.0,0.00019527,2]
[376698466,1754082640094,-508.64803784,0.00019527,2]
[376698467,1754082640106,-460.0,0.00019527,2]
[376698468,1754082640117,-460.0,0.00019527,2]
[376698469,1754082640128,-460.0,0.00019527,2]
[376698470,1754082640141,-460.0,0.00019527,2]
[376698471,1754082640153,-270.06450994,0.00019527,2]
[376698473,1754082640163,-460.0,0.00019527,2]
[376698475,1754082640175,-651.58,0.00019527,2]
[376698477,1754082640184,-460.0,0.00019627,2]
[376698478,1754082640195,-200.0,0.00019635,15]
[376698479,1754082640205,-200.0,0.00019635,15]
[376698481,1754082640216,-200.0,0.00019635,15]
[376698483,1754082640226,-200.0,0.00019635,15]
[376698485,1754082640237,-460.0,0.00019728,2]
[376698487,1754082640247,-460.0,0.00019728,2]
[376698489,1754082640259,-806.18,0.00019728,2]
[376698491,1754082640277,-460.0,0.00019728,2]
[376698493,1754082640288,-460.0,0.00019799,2]
[376698494,1754082640299,-460.0,0.00019799,2]
[376698495,1754082640309,-460.0,0.00019799,2]
[376698496,1754082640321,-460.0,0.00019799,2]
[376698497,1754082640332,-460.0,0.00019799,2]
[376698498,1754082640343,-460.0,0.00019799,2]
[376698499,1754082640353,-460.0,0.00019799,2]
[376698500,1754082640364,-460.0,0.00019799,2]
[376698501,1754082640376,-460.0,0.00019799,2]
[376698502,1754082640386,-460.0,0.00019799,2]
[376698503,1754082640400,-460.0,0.00019799,2]
[376698504,1754082640411,-460.0,0.00019799,2]
[376698505,1754082640423,-2688.01,0.00019799,2]
[376698506,1754082640434,-460.0,0.000198,2]
[376698507,1754082640446,-460.0,0.000198,2]
[376698508,1754082640456,-460.0,0.000198,2]
[376698509,1754082640467,-460.0,0.000198,2]
[376698510,1754082640476,-287.78102647,0.000198,2]
[376698512,1754082640490,-172.21897353,0.000198,2]
[376698513,1754082640500,-460.0,0.000198,2]
[376698514,1754082640510,-460.0,0.000198,2]
[376698515,1754082640520,-373.57645274,0.000198,2]
[376698516,1754082640533,-86.42354726,0.000198,2]
[376698517,1754082640543,-460.0,0.000198,2]
[376698520,1754082640554,-326.81,0.000198,2]
[376698522,1754082640564,-460.0,0.000198,2]
[376698524,1754082640575,-196.11795671,0.000198,2]
[376698526,1754082640586,-460.0,0.000198,2]
[376698528,1754082640597,-460.0,0.000198,2]
[376698530,1754082640608,-420.42499832,0.00019801,2]
[376698533,1754082640619,-460.0,0.00019801,2]
[376698535,1754082640630,-460.0,0.00019801,2]
[376698537,1754082640640,-460.0,0.00019801,2]
[376698539,1754082640650,-460.0,0.00019801,2]
[376698541,1754082640660,-460.0,0.00019801,2]
[376698543,1754082640671,-651.58,0.00019801,2]
[376698545,1754082640680,-6013.89468936,0.00019802,2]
[376698555,1754082640767,-17671.54578598,0.00019802,2]
[376698558,1754082640779,-1050.55430344,0.00019802,2]
[376698560,1754082640791,-510.20959597,0.00019802,2]
[376698563,1754082640810,-460.0,0.00019802,2]
[376698565,1754082640824,-1480.09739543,0.00019802,2]
[376698568,1754082640837,-658.2987274,0.00019802,2]
[376698570,1754082640853,-572.53113966,0.00019802,2]
[376698572,1754082640867,-953.62582776,0.00019802,2]
[376698574,1754082640879,-460.0,0.00019901,2]
[376698576,1754082640889,-460.0,0.00020002,2]
[376698578,1754082640901,-460.0,0.00020002,2]
[376698580,1754082640911,-406.39855638,0.00020002,2]
[376698584,1754082640935,-320.57467597,0.00020002,2]
[376699147,1754082646676,-79.20676765,0.00020002,2]
[376699149,1754082646686,-460.0,0.00020002,2]
[376699151,1754082646695,-460.0,0.00020073,2]
[376699153,1754082646704,-460.0,0.00020073,2]
[376699155,1754082646714,-460.0,0.00020073,2]
[376699157,1754082646723,-460.0,0.00020073,2]
[376699159,1754082646734,-460.0,0.00020073,2]
[376699161,1754082646743,-460.0,0.00020073,2]
[376699163,1754082646753,-460.0,0.00020073,2]
[376699165,1754082646762,-460.0,0.00020073,2]
[376699167,1754082646772,-460.0,0.00020073,2]
[376699169,1754082646781,-460.0,0.00020073,2]
[376699172,1754082646791,-460.0,0.00020073,2]
[376699174,1754082646800,-460.0,0.00020073,2]
[376699176,1754082646810,-1669.55173835,0.00020073,2]
[376699179,1754082646822,-1018.45826165,0.00020073,2]
[376699180,1754082646832,-460.0,0.00020074,2]
[376699182,1754082646841,-460.0,0.00020074,2]
[376699184,1754082646850,-460.0,0.00020074,2]
[376699186,1754082646859,-460.0,0.00020074,2]
[376699188,1754082646869,-460.0,0.00020074,2]
[376699192,1754082646879,-460.0,0.00020074,2]
[376699194,1754082646888,-460.0,0.00020074,2]
[376699195,1754082646897,-460.0,0.00020074,2]
[376699197,1754082646909,-460.0,0.00020074,2]
[376699199,1754082646919,-460.0,0.00020074,2]
[376699202,1754082646929,-460.0,0.00020074,2]
[376699203,1754082646938,-460.0,0.00020074,2]
[376699206,1754082646948,-460.0,0.00020075,2]
[376699208,1754082646957,-460.0,0.00020075,2]
[376699210,1754082646966,-460.0,0.00020075,2]
[376699212,1754082646976,-460.0,0.00020075,2]
[376699214,1754082646986,-460.0,0.00020075,2]
[376699216,1754082646995,-651.58,0.00020075,2]
[376699218,1754082647005,-460.0,0.00020175,2]
[376699219,1754082647015,-1806.32500363,0.00020275,2]
[376699222,1754082647025,-460.0,0.00020276,2]
[376699224,1754082647035,-460.0,0.00020276,2]
[376699226,1754082647045,-806.18,0.00020276,2]
[376699228,1754082647055,-460.0,0.00020276,2]
[376699230,1754082647064,-460.0,0.00020347,2]
[376699232,1754082647074,-460.0,0.00020347,2]
[376699234,1754082647083,-460.0,0.00020347,2]
[376699236,1754082647093,-460.0,0.00020347,2]
[376699238,1754082647102,-460.0,0.00020347,2]
[376699239,1754082647111,-460.0,0.00020347,2]
[376699241,1754082647120,-460.0,0.00020347,2]
[376699243,1754082647133,-460.0,0.00020347,2]
[376699245,1754082647143,-460.0,0.00020347,2]
[376699247,1754082647156,-460.0,0.00020347,2]
[376699250,1754082647166,-460.0,0.00020347,2]
[376699251,1754082647176,-460.0,0.00020347,2]
[376699253,1754082647185,-388.25585649,0.00020347,2]
[376699256,1754082647197,-352.156064,0.00020347,2]
[376699509,1754082675828,5000.0,0.000192,2]
[376699510,1754082719020,150.0,0.000189,2]
[376699511,1754082763618,1999.2,0.0002711,30]
[376699512,1754083017755,3119.3256681,0.00018601,2]
[376699513,1754083020523,150.0,0.000189,2]
[376699514,1754083178653,5204.3743318,0.0001857,2]
[376699519,1754083388417,250.200798,0.0001845,2]
[376699520,1754083393337,158.372808,0.00013699,2]
[376699597,1754083831680,-287.0,0.0001925,2]
[376699598,1754083831690,-460.0,0.00019251,2]
[376699599,1754083831699,-460.0,0.00019251,2]
[376699600,1754083831709,-1199.13,0.00019251,2]
[376699601,1754083831718,-460.0,0.00019251,2]
[376699602,1754083831727,-460.0,0.00019251,2]
[376699603,1754083831737,-460.0,0.00019251,2]
[376699604,1754083831747,-72.33238014,0.00019251,2]
[376699644,1754083837740,-387.66761986,0.00019251,2]
[376699646,1754083837749,-460.0,0.00019251,2]
[376699648,1754083837759,-460.0,0.00019251,2]
[376699650,1754083837768,-460.0,0.00019251,2]
[376699652,1754083837778,-460.0,0.00019251,2]
[376699654,1754083837787,-460.0,0.00019251,2]
[376699656,1754083837797,-460.0,0.00019251,2]
[376699658,1754083837806,-460.0,0.00019251,2]
[376699660,1754083837815,-460.0,0.00019251,2]
[376699662,1754083837824,-460.0,0.00019251,2]
[376699664,1754083837834,-460.0,0.00019251,2]
[376699666,1754083837843,-460.0,0.00019251,2]
[376699668,1754083837852,-460.0,0.00019251,2]
[376699670,1754083837861,-460.0,0.00019251,2]
[376699672,1754083837870,-208.1435436,0.00019251,2]
[376699674,1754083837879,-460.0,0.00019251,2]
[376699676,1754083837889,-367.89175208,0.00019251,2]
[376699678,1754083837898,-460.0,0.00019251,2]
[376699680,1754083837907,-460.0,0.00019251,2]
[376699682,1754083837916,-460.0,0.00019251,2]
[376699684,1754083837925,-460.0,0.00019251,2]
[376699686,1754083837934,-460.0,0.00019251,2]
[376699688,1754083837943,-542.98,0.00019251,2]
[376699690,1754083837952,-460.0,0.00019251,2]
[376699692,1754083837962,-239.77690934,0.00019251,2]
[376699694,1754083837971,-460.0,0.00019252,2]
[376699696,1754083837980,-460.0,0.00019252,2]
[376699698,1754083837989,-360.44483963,0.00019252,2]
[376699700,1754083837999,-460.0,0.00019252,2]
[376699702,1754083838008,-460.0,0.00019252,2]
[376699704,1754083838017,-460.0,0.00019252,2]
[376699706,1754083838026,-460.0,0.00019252,2]
[376699708,1754083838036,-460.0,0.00019252,2]
[376699710,1754083838045,-460.0,0.00019252,2]
[376699712,1754083838054,-1861.01018049,0.00019252,2]
[376699714,1754083838066,-700.27981951,0.00019252,2]
[376699716,1754083838075,-1375.11045135,0.00019424,2]
[376699718,1754083838085,-460.0,0.00019524,2]
[376699720,1754083838094,-462.34368805,0.00019524,2]
[376699722,1754083838104,-460.0,0.00019524,2]
[376699724,1754083838113,-508.86245328,0.00019524,2]
[376699726,1754083838122,-460.0,0.00019524,2]
[376699728,1754083838131,-464.06210698,0.00019524,2]
[376699730,1754083838141,-497.17103393,0.00019524,2]
[376699732,1754083838150,-460.0,0.00019524,2]
[376699734,1754083838159,-460.0,0.00019524,2]
[376699736,1754083838168,-2209.15,0.00019524,2]
[376699738,1754083838178,-288.9683301,0.00019524,2]
[376699740,1754083838187,-460.0,0.00019524,2]
[376699742,1754083838196,-460.0,0.00019524,2]
[376699744,1754083838205,-460.0,0.00019524,2]
[376699746,1754083838215,-4467.5,0.00019524,2]
[376699748,1754083838224,-460.0,0.00019524,2]
[376699750,1754083838233,-224.51070659,0.00019524,2]
[376699753,1754083838249,-235.48929341,0.00019524,2]
[376699755,1754083838260,-460.0,0.00019524,2]
[376699757,1754083838269,-460.0,0.00019524,2]
[376699759,1754083838279,-460.0,0.00019524,2]
[376699761,1754083838289,-460.0,0.00019524,2]
[376699763,1754083838298,-460.0,0.00019524,2]
[376699765,1754083838307,-460.0,0.00019524,2]
[376699767,1754083838317,-460.0,0.00019525,2]
[376699769,1754083838326,-1199.13,0.00019525,2]
[376699771,1754083838335,-460.0,0.00019525,2]
[376699773,1754083838345,-460.0,0.00019525,2]
[376699775,1754083838354,-494.74,0.00019525,2]
[376699778,1754083838363,-460.0,0.00019525,2]
[376699780,1754083838372,-460.0,0.00019525,2]
[376699782,1754083838383,-460.0,0.00019525,2]
[376699784,1754083838393,-460.0,0.00019525,2]
[376699786,1754083838404,-1.47168491,0.00019525,2]
[376699788,1754083838419,-322.24925186,0.00019525,2]
[376699790,1754083838430,-136.27906323,0.00019525,2]
[376699792,1754083838439,-460.0,0.00019525,2]
[376699794,1754083838449,-460.0,0.00019525,2]
[376699796,1754083838459,-460.0,0.00019525,2]
[376699798,1754083838468,-460.0,0.00019525,2]
[376699800,1754083838478,-460.0,0.00019525,2]
[376699802,1754083838488,-460.0,0.00019525,2]
[376699804,1754083838497,-460.0,0.00019525,2]
[376699806,1754083838507,-36.99800469,0.00019525,2]
[376699808,1754083838518,-505.98199531,0.00019525,2]
[376699810,1754083838527,-460.0,0.00019525,2]
[376699811,1754083838536,-460.0,0.00019526,2]
[376699812,1754083838546,-460.0,0.00019526,2]
[376699814,1754083838555,-460.0,0.00019526,2]
[376699816,1754083838565,-460.0,0.00019526,2]
[376699818,1754083838575,-460.0,0.00019526,2]
[376699819,1754083838584,-460.0,0.00019526,2]
[376699821,1754083838593,-460.0,0.00019526,2]
[376699822,1754083838603,-2561.29,0.00019526,2]
[376699824,1754083838613,-500.0,0.00019573,2]
[376699826,1754083838623,-211.31091113,0.00019573,2]
[376699827,1754083838632,-501.12175368,0.00019573,2]
[376699829,1754083838642,-200.0,0.00019635,15]
[376699831,1754083838651,-200.0,0.00019635,15]
[376699833,1754083838661,-200.0,0.00019635,15]
[376699834,1754083838670,-200.0,0.00019635,15]
[376699835,1754083838679,-608.08,0.00019798,2]
[376699836,1754083838689,-167.73961674,0.00019798,2]
[376699837,1754083838697,-563.6,0.00019798,2]
[376699838,1754083838707,-2209.15,0.00019798,2]
[376699839,1754083838716,-460.0,0.00019798,2]
[376699840,1754083838725,-460.0,0.00019798,2]
[376699841,1754083838735,-460.0,0.00019798,2]
[376699842,1754083838744,-4467.5,0.00019798,2]
[376699843,1754083838753,-460.0,0.00019798,2]
[376699844,1754083838763,-460.0,0.00019798,2]